bitfinex-derivatives/quotes_BTCF0:USTF0_20251219
["timestamp","ask_amount","ask_price","bid_price","bid_amount"]
[1766158512667,0.00016981,88331.0,88315.0,0.0113281]
[1766158512968,0.00312,88339.0,88314.0,0.00016981]
[1766158513164,0.0113249,88341.0,88320.0,0.0113275]
[1766158513466,0.00412,88343.0,88314.0,0.00016981]
[1766158513665,0.0113257,88335.0,88314.0,0.00016981]
[1766158513970,0.00011252,88333.0,88315.0,0.0113281]
[1766158514569,0.00011252,88333.0,88314.0,0.00016981]
[1766158514866,0.00011252,88333.0,88315.0,0.011328]
[1766158515074,0.08106577,88409.0,88343.0,0.0113245]
[1766158515263,0.11859818,89072.0,88323.0,0.47086095]
[1766158515264,0.01157726,88440.0,88400.0,0.47086095]
[1766158515458,0.47086095,88460.0,88420.0,0.00099999]
[1766158515662,0.01138061,88454.0,88415.0,0.00584]
[1766158515862,0.01138061,88454.0,88397.0,1.445]
[1766158515863,0.0113126,88437.0,88401.0,0.11315289]
[1766158516072,0.00016895,88428.0,88396.0,0.0301326]
[1766158516367,0.011315,88418.0,88380.0,0.03113259]
[1766158516667,0.46986095,88410.0,88368.0,0.03023658]
[1766158516870,1.45076,88409.0,88373.0,0.0171607]
[1766158517062,1.45076,88409.0,88382.0,0.00016961]
[1766158517063,0.00016895,88400.0,88382.0,0.00016961]
[1766158517966,0.00016895,88400.0,88383.0,0.0113194]
[1766158518266,0.00016895,88400.0,88382.0,0.00016961]
[1766158518468,0.00016895,88400.0,88379.0,0.0113199]
[1766158518665,0.00016895,88400.0,88368.0,0.00010398]
[1766158518964,0.00016895,88400.0,88377.0,0.0113201]
[1766158519167,0.00016895,88400.0,88383.0,0.0113194]
[1766158519471,0.00016895,88400.0,88383.0,0.00016971]
[1766158519668,0.0113179,88395.0,88368.0,0.00010398]
[1766158519970,0.4710299,88400.0,88368.0,0.0113213]
[1766158519971,0.00584,88394.0,88368.0,0.0113213]
[1766158520266,0.00584,88394.0,88360.0,0.47086095]
[1766158520564,0.00212,88401.0,88389.0,0.0113185]
[1766158520755,0.00016971,88404.0,88388.0,0.0113187]
[1766158520962,1.44444,88425.0,88398.0,0.0113175]
[1766158521157,1.44444,88432.0,88411.0,0.0113158]
[1766158521368,0.00584,88431.0,88416.0,0.0113151]
[1766158521564,0.00584,88431.0,88406.0,0.0113165]
[1766158521775,0.00584,88431.0,88381.0,0.0301326]
[1766158522073,0.00016971,88415.0,88398.0,0.0113175]
[1766158522662,0.00016971,88415.0,88397.0,0.00016971]
[1766158523059,0.0113161,88410.0,88382.0,0.0113195]
[1766158523260,0.0113165,88406.0,88382.0,0.0113195]
[1766158523457,0.00408,88406.0,88382.0,0.0113195]
[1766158524263,0.0153965,88406.0,88385.0,0.00016971]
[1766158524663,0.0153965,88406.0,88377.0,0.0113201]
[1766158525372,0.00408,88406.0,88371.0,0.0637442]
[1766158525569,0.0113178,88396.0,88380.0,0.00016971]
[1766158526372,0.00016971,88397.0,88380.0,0.00016971]
[1766158527675,0.00016971,88397.0,88381.0,0.0113196]
[1766158527973,0.00016971,88397.0,88385.0,0.0113192]
[1766158528369,0.47086095,88430.0,88380.0,0.00016971]
[1766158528370,0.0113149,88419.0,88393.0,0.0113181]
[1766158528576,0.0113152,88417.0,88392.0,0.0113182]
[1766158528873,0.0113161,88410.0,88379.0,0.0301326]
[1766158529174,0.0113161,88410.0,88385.0,0.0113191]
[1766158529370,0.00016971,88406.0,88389.0,0.00016971]
[1766158529677,0.0113137,88428.0,88403.0,0.0113168]
[1766158529863,0.00284,88427.0,88403.0,0.0113168]
[1766158530064,0.0113131,88433.0,88407.0,0.0113163]
[1766158530273,0.00408,88432.0,88412.0,0.0113157]
[1766158530568,0.47086095,88450.0,88413.0,0.00016971]
[1766158530569,0.00596971,88431.0,88413.0,0.00016971]
[1766158531161,0.00596971,88431.0,88413.0,0.01148531]
[1766158531468,0.00528,88430.0,88419.0,0.0113148]
[1766158531668,1.44384,88456.0,88426.0,0.0113139]
[1766158531877,0.0058,88451.0,88415.0,0.0357726]
[1766158532066,0.0058,88451.0,88422.0,0.0301326]
[1766158532067,0.0113123,88439.0,88422.0,0.0301326]
[1766158532263,0.47086095,88450.0,88413.0,0.00016971]
[1766158532264,0.00144,88438.0,88413.0,0.00016971]
[1766158532567,0.47086095,88450.0,88414.0,0.03352791]
[1766158532568,0.011313,88434.0,88414.0,0.03352791]
[1766158532770,0.011309,88465.0,88415.0,0.03352791]
[1766158532971,0.011309,88465.0,88413.0,0.00016971]
[1766158532972,0.01131,88457.0,88417.0,0.0113151]
[1766158533173,0.0113114,88446.0,88413.0,0.00016971]
[1766158533358,0.0113114,88446.0,88418.0,0.0113149]
[1766158533562,0.0113114,88446.0,88421.0,0.0113145]
[1766158533763,0.0058,88445.0,88421.0,0.0113145]
[1766158533970,0.01159481,88471.0,88433.0,0.011313]
[1766158534271,0.0565053,88528.0,88434.0,0.00016961]
[1766158534272,0.0113099,88458.0,88434.0,0.00016961]
[1766158534473,0.0113089,88466.0,88434.0,0.00016961]
[1766158534668,0.0058,88465.0,88443.0,0.0113117]
[1766158534865,0.00408,88464.0,88445.0,0.00016961]
[1766158535266,0.011308,88473.0,88448.0,0.0113111]
[1766158535468,0.011308,88473.0,88445.0,0.00016961]
[1766158535469,0.0113083,88470.0,88445.0,0.00016961]
[1766158535675,0.0113087,88467.0,88446.0,0.0113113]
[1766158535872,0.0113087,88467.0,88445.0,0.00016961]
[1766158536077,0.011309,88465.0,88445.0,0.00016961]
[1766158536273,0.0113093,88462.0,88445.0,0.00016961]
[1766158536570,0.00408,88466.0,88445.0,0.00016961]
[1766158536875,1.5,88478.0,88445.0,1e-08]
[1766158536876,0.0113114,88446.0,88445.0,1e-08]
[1766158537072,0.011311,88450.0,88445.0,1e-08]
[1766158537277,0.0113108,88451.0,88445.0,1e-08]
[1766158537479,0.0113111,88448.0,88445.0,1e-08]
[1766158537674,0.0113107,88452.0,88445.0,1e-08]
[1766158537986,0.011311,88449.0,88445.0,1e-08]
[1766158538276,0.0113106,88453.0,88445.0,1e-08]
[1766158538477,0.0113106,88453.0,88424.0,1.50393183]
[1766158538478,0.0056,88454.0,88424.0,0.04017681]
[1766158538669,0.0113126,88437.0,88425.0,0.03307363]
[1766158538868,0.0113132,88432.0,88419.0,0.04017681]
[1766158539171,0.0113127,88436.0,88420.0,0.03308161]
[1766158539372,0.0113127,88436.0,88421.0,0.03308161]
[1766158539674,0.0113129,88435.0,88422.0,0.03308161]
[1766158539882,0.0113129,88435.0,88423.0,0.03308161]
[1766158540080,0.00016961,88437.0,88424.0,0.03308161]
[1766158540277,0.46905784,88480.0,88425.0,0.07325842]
[1766158540577,0.0113119,88443.0,88426.0,0.07325842]
[1766158540881,0.0113119,88443.0,88427.0,0.03308161]
[1766158540882,0.00076,88442.0,88427.0,0.03308161]
[1766158541077,0.00076,88442.0,88428.0,0.03308161]
[1766158541270,0.00076,88442.0,88429.0,0.03308161]
[1766158541470,0.00076,88442.0,88430.0,0.03308161]
[1766158541681,0.00076,88442.0,88431.0,0.03308161]
[1766158541880,0.00076,88442.0,88426.0,0.04017681]
[1766158542066,0.0113121,88441.0,88427.0,0.03315965]
[1766158542270,0.00076,88442.0,88428.0,5e-08]
[1766158542483,0.0113126,88437.0,88426.0,0.04017681]
[1766158542781,0.00076,88442.0,88426.0,0.04017681]
[1766158542983,0.00076,88442.0,88425.0,0.04017681]
[1766158543373,0.0113128,88436.0,88427.0,0.04017681]
[1766158543675,0.0113128,88436.0,88428.0,0.04017681]
[1766158543880,0.0113123,88439.0,88427.0,0.04017681]
[1766158544081,0.00076,88442.0,88429.0,0.04017681]
[1766158544279,0.00076,88442.0,88433.0,0.04017681]
[1766158544479,0.00076,88442.0,88424.0,0.06045183]
[1766158544667,0.0113125,88438.0,88420.0,0.00016961]
[1766158544870,0.0113125,88438.0,88421.0,0.0113146]
[1766158545268,0.0113125,88438.0,88420.0,0.00016961]
[1766158545673,0.011313,88434.0,88420.0,0.00016961]
[1766158546280,0.00076,88442.0,88420.0,0.00016961]
[1766158546481,0.0113144,88423.0,88420.0,1e-08]
[1766158547577,0.0113152,88417.0,88400.0,0.06045183]
[1766158547773,0.00436,88425.0,88401.0,0.00308]
[1766158547981,0.0113153,88416.0,88401.0,0.00308]
[1766158548182,0.0113148,88419.0,88401.0,0.00308]
[1766158548478,0.00436,88425.0,88401.0,0.014397]
[1766158548686,0.00010554,88418.0,88401.0,0.00016961]
[1766158548878,0.0113159,88411.0,88401.0,0.00016961]
[1766158549184,0.00148,88411.0,88401.0,0.00016961]
[1766158549372,0.0127959,88411.0,88401.0,0.00016961]
[1766158549772,0.00148,88411.0,88401.0,1e-08]
[1766158549979,0.0113168,88404.0,88401.0,1e-08]
[1766158550182,0.0113168,88404.0,88372.0,0.08060244]
[1766158550183,0.00148,88411.0,88380.0,3e-08]
[1766158550382,0.0113191,88386.0,88365.0,1.44316]
[1766158550680,0.00011355,88385.0,88370.0,0.0171211]
[1766158550881,0.00052,88392.0,88370.0,0.0058]
[1766158551082,0.00016971,88390.0,88373.0,0.00016971]
[1766158551270,0.00016971,88390.0,88374.0,0.0113206]
[1766158551469,0.00016971,88390.0,88373.0,0.00016971]
[1766158551678,0.00016971,88390.0,88377.0,0.0113201]
[1766158551884,0.46905784,88430.0,88382.0,0.0113196]
[1766158552082,0.46905784,88430.0,88371.0,0.00010206]
[1766158552083,0.0113162,88409.0,88385.0,0.0113192]
[1766158552275,0.0058,88408.0,88385.0,0.0113192]
[1766158552475,0.0113164,88407.0,88385.0,0.0113192]
[1766158552671,0.0113164,88407.0,88371.0,0.01142296]
[1766158552876,0.00016971,88398.0,88380.0,0.00016971]
[1766158553076,0.0113195,88383.0,88380.0,1e-08]
[1766158553281,0.0018,88386.0,88371.0,0.00010206]
[1766158553487,0.0058,88385.0,88371.0,0.00010206]
[1766158554883,0.0058,88385.0,88332.0,0.13551257]
[1766158555088,0.0058,88385.0,88335.0,0.0113255]
[1766158555089,0.46905784,88380.0,88335.0,0.0113255]
[1766158555284,0.0113217,88366.0,88339.0,0.011325]
[1766158555581,1.44332,88379.0,88345.0,0.0113242]
[1766158555582,0.0058,88365.0,88345.0,0.0113242]
[1766158555784,0.0113206,88374.0,88340.0,0.320607]
[1766158555978,0.00010206,88373.0,88357.0,0.0113227]
[1766158556281,0.0026,88372.0,88357.0,0.0113227]
[1766158556484,0.0026,88372.0,88356.0,0.0113228]
[1766158556888,0.0026,88372.0,88352.0,0.0113233]
[1766158557084,0.06074557,88427.0,88350.0,0.320607]
[1766158557287,0.011318,88395.0,88360.0,0.320607]
[1766158557489,0.0113182,88393.0,88368.0,0.0113213]
[1766158557686,0.0113194,88383.0,88359.0,0.0113224]
[1766158557989,0.0113197,88381.0,88359.0,0.0113224]
[1766158558195,0.00016971,88379.0,88361.0,0.00016971]
[1766158558583,0.00016971,88379.0,88361.0,0.01149181]
[1766158558785,0.00016971,88379.0,88361.0,0.00016971]
[1766158558982,0.0113205,88375.0,88361.0,0.00016971]
[1766158559195,0.00016971,88379.0,88361.0,0.00016971]
[1766158559582,0.0026,88378.0,88361.0,0.00016971]
[1766158559783,0.0113188,88389.0,88361.0,0.00016971]
[1766158559989,0.00128,88388.0,88371.0,0.0113209]
[1766158560292,0.00408,88387.0,88367.0,0.0113214]
[1766158560790,0.00408,88387.0,88361.0,0.00016971]
[1766158560992,0.0113194,88383.0,88361.0,0.00016971]
[1766158561294,0.0113193,88385.0,88361.0,0.00016971]
[1766158561494,0.00408,88387.0,88361.0,0.00016971]
[1766158561689,0.0113207,88374.0,88361.0,0.00016971]
[1766158561884,0.0113209,88372.0,88361.0,0.00016971]
[1766158562504,0.0058,88373.0,88361.0,0.00016971]
[1766158563092,0.0054,88379.0,88361.0,0.00016971]
[1766158563296,0.0113183,88393.0,88361.0,0.00016971]
[1766158563595,0.00408,88392.0,88361.0,0.00016971]
[1766158563794,0.00408,88392.0,88372.0,0.0113207]
[1766158563993,0.00408,88392.0,88361.0,0.00016971]
[1766158564689,0.00408,88392.0,88362.0,0.0113221]
[1766158565098,0.0113193,88385.0,88364.0,0.0113218]
[1766158565497,0.0113189,88388.0,88361.0,0.00016971]
[1766158565792,0.320607,88390.0,88361.0,0.00016971]
[1766158566002,0.320607,88380.0,88347.0,0.011324]
[1766158566199,0.0113201,88378.0,88345.0,0.0058]
[1766158566495,0.0113201,88378.0,88344.0,0.0113244]
[1766158566496,0.0113201,88378.0,88344.0,0.07507548]
[1766158566793,0.0058,88379.0,88351.0,0.0113235]
[1766158566993,0.0113216,88367.0,88356.0,0.00016971]
[1766158567294,0.0058,88366.0,88356.0,0.00016971]
[1766158567491,0.0113217,88365.0,88356.0,0.00016971]
[1766158567796,0.0058,88366.0,88356.0,0.00016971]
[1766158568097,0.0171217,88366.0,88346.0,0.0113241]
[1766158568498,0.0058,88366.0,88340.0,0.08076678]
[1766158568892,0.0058,88366.0,88340.0,0.06944188]
[1766158569198,0.0058,88366.0,88344.0,0.00016971]
[1766158569899,0.0058,88366.0,88346.0,0.0113241]
[1766158570097,0.0113224,88360.0,88344.0,0.00016971]
[1766158570599,0.0113228,88357.0,88344.0,0.00016971]
[1766158570801,0.0113219,88364.0,88344.0,0.00016971]
[1766158571100,0.0113235,88352.0,88344.0,0.00016971]
[1766158571295,0.0058,88355.0,88344.0,1e-08]
[1766158571497,0.0113248,88341.0,88323.0,1.44392]
[1766158571698,0.0058,88343.0,88325.0,0.0113268]
[1766158572087,0.0058,88343.0,88322.0,0.06317797]
[1766158572288,0.0113248,88342.0,88323.0,0.0113271]
[1766158572485,0.00016981,88341.0,88324.0,0.00016981]
[1766158573090,0.011325,88340.0,88324.0,0.00016981]
[1766158573290,0.011325,88340.0,88324.0,1e-08]
[1766158573491,0.320607,88340.0,88310.0,0.0113288]
[1766158573691,0.0113256,88335.0,88312.0,0.0113284]
[1766158574095,0.0058,88334.0,88312.0,0.07314034]
[1766158574396,0.011326,88333.0,88310.0,0.0113287]
[1766158574604,0.0113262,88331.0,88314.0,0.00016981]
[1766158575103,0.320607,88330.0,88313.0,4.35e-06]
[1766158575401,0.00016981,88341.0,88313.0,4.35e-06]
[1766158575596,0.0058,88340.0,88319.0,0.0113275]
[1766158575801,0.0058,88340.0,88313.0,4.35e-06]
[1766158576193,8.019e-05,88339.0,88318.0,0.00016981]
[1766158576998,0.0113264,88329.0,88313.0,4.35e-06]
[1766158577199,0.0113275,88320.0,88313.0,4.35e-06]
[1766158577393,0.320607,88330.0,88301.0,0.0113299]
[1766158577394,0.0058,88319.0,88301.0,0.0113299]
[1766158577596,0.0058,88318.0,88297.0,0.0113305]
[1766158577798,0.00512,88317.0,88294.0,0.04019887]
[1766158577993,0.00016981,88314.0,88297.0,0.00011305]
[1766158578189,0.0012,88313.0,88297.0,0.00011305]
[1766158578393,0.0113294,88306.0,88297.0,0.00011305]
[1766158578601,0.0113294,88306.0,88283.0,0.0113322]
[1766158578602,0.00308,88305.0,88283.0,0.0113322]
[1766158579103,0.00308,88305.0,88277.0,0.04599887]
[1766158579304,0.00099999,88370.0,88277.0,0.04599887]
[1766158579305,0.01068839,88365.0,88314.0,0.0113282]
[1766158579506,1e-08,88348.0,88340.0,0.320607]
[1766158579802,0.320607,88390.0,88348.0,0.0113239]
[1766158580102,0.0058,88389.0,88348.0,0.0113239]
[1766158580290,0.0058,88389.0,88360.0,0.0113223]
[1766158580697,0.00016981,88383.0,88344.0,0.0058]
[1766158580896,0.00016981,88383.0,88360.0,0.0113223]
[1766158581304,1e-08,88383.0,88354.0,0.00404]
[1766158581498,1e-08,88383.0,88369.0,0.0113212]
[1766158581705,1e-08,88383.0,88361.0,0.0113222]
[1766158582098,1e-08,88383.0,88366.0,0.0113215]
[1766158582403,1e-08,88383.0,88372.0,0.0113208]
[1766158582605,0.00128001,88383.0,88366.0,0.00016981]
[1766158582803,0.00128001,88383.0,88366.0,0.01149141]
[1766158583193,0.00128001,88383.0,88371.0,0.0113209]
[1766158583504,0.00128001,88383.0,88372.0,0.0323491]
[1766158583801,0.00064,88386.0,88378.0,0.01132]
[1766158584008,0.00064,88387.0,88372.0,0.0113208]
[1766158584193,0.0058,88388.0,88373.0,0.03233751]
[1766158584393,0.0058,88388.0,88366.0,0.04040499]
[1766158584602,0.00016972,88386.0,88367.0,0.03234033]
[1766158584802,0.320607,88380.0,88353.0,0.06036752]
[1766158585004,0.0113201,88378.0,88344.0,0.06036752]
[1766158585191,0.0058,88379.0,88348.0,0.0113239]
[1766158585601,0.0058,88379.0,88353.0,0.0113232]
[1766158585804,0.0058,88379.0,88357.0,0.00016948]
[1766158586504,0.0171201,88379.0,88357.0,0.00016948]
[1766158586707,0.0171201,88379.0,88341.0,0.06360379]
[1766158586708,0.3319282,88370.0,88341.0,0.07492859]
[1766158586899,0.0058,88369.0,88338.0,0.0058]
[1766158587095,0.320607,88360.0,88331.0,0.0171261]
[1766158587400,0.0058,88359.0,88331.0,0.0058]
[1766158587599,0.00016972,88354.0,88331.0,0.0058]
[1766158587994,0.00016972,88354.0,88325.0,0.0113268]
[1766158588195,0.00016972,88354.0,88327.0,0.0113265]
[1766158588902,0.00016972,88354.0,88335.0,0.0113255]
[1766158589203,1.44416,88370.0,88339.0,0.011325]
[1766158589408,0.0058,88369.0,88339.0,0.011325]
[1766158590209,0.00016972,88363.0,88345.0,0.00016972]
[1766158590600,0.320607,88360.0,88333.0,0.06036752]
[1766158590909,0.0113243,88346.0,88326.0,9.035e-05]
[1766158591103,0.0058,88345.0,88326.0,9.035e-05]
[1766158591502,0.0113254,88337.0,88315.0,0.06139246]
[1766158591707,0.0058,88336.0,88312.0,0.00024]
[1766158591913,0.01149572,88333.0,88308.0,0.06036752]
[1766158592096,0.00016982,88333.0,88309.0,0.0058]
[1766158592408,0.0058,88336.0,88323.0,0.03021346]
[1766158592608,0.00288,88338.0,88328.0,0.03021346]
[1766158592908,0.00308,88349.0,88337.0,0.03021346]
[1766158593101,0.00308,88348.0,88336.0,0.03021346]
[1766158593298,0.00308,88348.0,88337.0,0.03021346]
[1766158593505,0.00196,88354.0,88341.0,0.03021346]
[1766158593708,0.00196,88354.0,88342.0,0.03021346]
[1766158593900,0.00196,88354.0,88344.0,0.03021346]
[1766158594111,0.00196,88354.0,88336.0,0.0113254]
[1766158594112,0.00196,88354.0,88345.0,0.03021346]
[1766158594414,0.0058,88358.0,88345.0,0.03021346]
[1766158594612,0.00596982,88358.0,88345.0,0.03021346]
[1766158595002,0.00596982,88358.0,88346.0,0.03021346]
[1766158595708,0.0113209,88372.0,88347.0,0.04153746]
[1766158596008,0.0058,88371.0,88352.0,0.03021346]
[1766158596217,0.06321618,88439.0,88361.0,0.320607]
[1766158596399,1.44428,88441.0,88390.0,0.320607]
[1766158596600,1.44428,88441.0,88363.0,0.0113219]
[1766158596601,0.0113126,88437.0,88400.0,0.36208404]
[1766158596805,0.00016971,88427.0,88410.0,0.00016971]
[1766158597013,0.00016971,88427.0,88412.0,0.03015984]
[1766158597211,0.00016971,88427.0,88414.0,0.03015984]
[1766158597408,0.00016971,88427.0,88414.0,4e-08]
[1766158597717,0.01148361,88427.0,88399.0,0.00132]
[1766158597906,0.0113131,88433.0,88398.0,0.00132]
[1766158598100,0.00408,88441.0,88399.0,0.03121922]
[1766158598101,0.0113142,88425.0,88399.0,0.03121922]
[1766158598306,0.00404,88424.0,88398.0,0.00132]
[1766158598609,0.00548,88436.0,88402.0,0.00016971]
[1766158598914,0.011313,88434.0,88403.0,0.03095884]
[1766158599114,0.011313,88434.0,88404.0,0.03676895]
[1766158599312,0.011313,88434.0,88404.0,0.0058]
[1766158599612,0.00016971,88428.0,88410.0,0.00016971]
[1766158600510,0.00128,88447.0,88411.0,0.0113158]
[1766158600816,1.5,88478.0,88430.0,0.320607]
[1766158600817,0.00032,88473.0,88430.0,0.320607]
[1766158601021,0.011309,88465.0,88417.0,0.011315]
[1766158601313,0.011309,88465.0,88418.0,0.03089444]
[1766158601515,0.011309,88465.0,88419.0,1.48061444]
[1766158601810,0.00016962,88450.0,88433.0,0.00016962]
[1766158602007,0.00256,88449.0,88404.0,0.07163639]
[1766158602208,0.00256,88449.0,88346.0,0.10661743]
[1766158602209,0.011312,88441.0,88405.0,0.03086363]
[1766158602406,0.0113111,88448.0,88406.0,0.03666363]
[1766158602602,0.0113125,88437.0,88403.0,0.0058]
[1766158602802,0.0058,88436.0,88403.0,0.0058]
[1766158603009,0.00016962,88428.0,88411.0,0.00016962]
[1766158603917,0.00016962,88428.0,88404.0,0.0004]
[1766158604816,0.0113138,88427.0,88407.0,0.00016962]
[1766158605015,0.0058,88426.0,88385.0,0.0113192]
[1766158605216,0.0113142,88425.0,88386.0,0.03663774]
[1766158605415,0.0113142,88425.0,88387.0,0.03083774]
[1766158605625,0.0058,88426.0,88389.0,0.0113186]
[1766158605918,0.0058,88426.0,88390.0,0.03083774]
[1766158606111,0.0058,88426.0,88399.0,0.00016962]
[1766158607321,0.017114,88426.0,88399.0,0.00016962]
[1766158607820,0.28013164,88410.0,88383.0,0.06154449]
[1766158608023,0.0113168,88404.0,88374.0,0.00332684]
[1766158608223,0.0113168,88404.0,88375.0,0.03204848]
[1766158608416,0.0113168,88404.0,88376.0,0.03084848]
[1766158608721,0.0113168,88404.0,88377.0,0.03664848]
[1766158609022,0.00016962,88399.0,88377.0,0.0058]
[1766158609222,0.00408,88398.0,88378.0,0.0308939]
[1766158609420,0.00408,88398.0,88360.0,0.0113223]
[1766158609421,0.0113197,88382.0,88360.0,0.06031969]
[1766158609619,0.0113197,88382.0,88337.0,0.07985409]
[1766158609620,0.011321,88371.0,88342.0,0.06031969]
[1766158609920,0.0113216,88367.0,88345.0,0.06125329]
[1766158610219,0.0113213,88369.0,88348.0,0.0058]
[1766158610422,0.00352,88370.0,88348.0,0.0058]
[1766158613020,0.00352,88370.0,88345.0,0.06125329]
[1766158613217,0.00352,88370.0,88349.0,0.0058]
[1766158613218,0.0113218,88365.0,88349.0,0.0058]
[1766158613722,0.0148412,88370.0,88349.0,0.0058]
[1766158613924,0.00352,88370.0,88349.0,0.0058]
[1766158614120,0.00016971,88380.0,88353.0,0.0113232]
[1766158614419,1.44372,88398.0,88365.0,0.0113216]
[1766158614616,0.0113181,88394.0,88370.0,0.28046666]
[1766158614922,0.011319,88387.0,88371.0,0.0058]
[1766158615720,0.0113195,88383.0,88371.0,0.0058]
[1766158615920,0.0113195,88383.0,88370.0,0.00016971]
[1766158615921,0.0113203,88376.0,88370.0,0.00016971]
[1766158616123,0.0113203,88376.0,88352.0,0.00010029]
[1766158616124,0.0113208,88373.0,88352.0,0.00010029]
[1766158616314,0.0113208,88373.0,88353.0,0.0058]
[1766158616514,0.0113202,88377.0,88353.0,0.0058]
[1766158616715,0.0113213,88369.0,88353.0,0.0058]
[1766158616914,0.0113216,88367.0,88354.0,0.0058]
[1766158617119,0.00016971,88369.0,88354.0,0.0058]
[1766158617320,0.0113214,88368.0,88352.0,0.00010029]
[1766158617726,0.00016971,88369.0,88352.0,0.00590029]
[1766158617933,0.0113214,88368.0,88352.0,0.00590029]
[1766158618117,0.0113219,88364.0,88352.0,0.00590029]
[1766158618526,0.00016971,88369.0,88352.0,0.00590029]
[1766158618816,0.0113214,88368.0,88352.0,0.00590029]
[1766158619527,0.0113218,88365.0,88352.0,0.00590029]
[1766158620021,0.01149101,88369.0,88352.0,0.00590029]
[1766158620222,0.01149101,88369.0,88352.0,0.00010029]
[1766158620421,0.00016971,88369.0,88352.0,0.00010029]
[1766158620726,0.00016971,88369.0,88353.0,0.0058]
[1766158620928,0.00016971,88369.0,88352.0,0.00590029]
[1766158621824,0.00016971,88369.0,88350.0,0.0058]
[1766158622019,0.0113216,88367.0,88340.0,0.06276384]
[1766158622324,0.00016971,88369.0,88321.0,0.04003853]
[1766158622325,0.0113234,88352.0,88321.0,0.04003853]
[1766158622533,0.0113227,88358.0,88295.0,1.00006874]
[1766158622534,0.011327,88325.0,88303.0,0.06031969]
[1766158622716,0.00016982,88323.0,88304.0,0.0058]
[1766158622919,0.01149702,88323.0,88304.0,0.0058]
[1766158623126,0.00016982,88323.0,88304.0,0.0058]
[1766158623325,0.00016982,88323.0,88298.0,0.0113303]
[1766158623620,0.00016982,88323.0,88301.0,0.0113299]
[1766158623825,0.00016982,88323.0,88296.0,0.0018]
[1766158624025,0.0113251,88339.0,88302.0,0.11323489]
[1766158624231,0.00068,88338.0,88312.0,0.0113285]
[1766158624423,0.00068,88338.0,88304.0,0.0113295]
[1766158624618,0.00068,88338.0,88305.0,0.00404]
[1766158624823,0.0113255,88336.0,88310.0,0.0113287]
[1766158625122,0.00016982,88332.0,88314.0,0.00016982]
[1766158625730,0.00016982,88332.0,88314.0,0.00080982]
[1766158627017,0.011327,88324.0,88314.0,0.00016982]
[1766158627325,0.011327,88324.0,88299.0,0.0113302]
[1766158627326,0.0058,88324.0,88299.0,0.0113302]
[1766158627529,0.0058,88324.0,88298.0,0.00404]
[1766158627830,0.0113271,88323.0,88298.0,0.00404]
[1766158628330,0.00016982,88319.0,88298.0,0.00404]
[1766158628527,0.00016982,88319.0,88299.0,0.0113301]
[1766158628735,0.00016982,88319.0,88302.0,0.0113298]
[1766158628920,0.0113257,88334.0,88308.0,0.011329]
[1766158629126,0.0113257,88334.0,88309.0,0.0058]
[1766158629724,0.0113257,88335.0,88309.0,0.0058]
[1766158630052,0.00016982,88331.0,88313.0,0.00016982]
[1766158630228,0.00404,88337.0,88313.0,0.00016982]
[1766158630534,0.00404,88337.0,88313.0,0.01149822]
[1766158630727,0.00404,88337.0,88315.0,0.0113281]
[1766158630925,0.00404,88337.0,88314.0,0.00408]
[1766158631125,0.00404,88337.0,88315.0,0.0113281]
[1766158631337,0.00016982,88334.0,88315.0,0.0113281]
[1766158631532,0.00016982,88334.0,88318.0,0.0113277]
[1766158631734,0.00016982,88334.0,88313.0,0.00016982]
[1766158631920,0.0113259,88333.0,88315.0,0.0058]
[1766158632325,0.0113266,88328.0,88315.0,0.0058]
[1766158632623,0.02105776,88369.0,88315.0,0.0113281]
[1766158632936,0.011325,88340.0,88315.0,0.0113281]
[1766158633131,0.0058,88349.0,88316.0,0.0058]
[1766158633337,0.0113241,88347.0,88316.0,0.11899644]
[1766158633532,0.0113241,88347.0,88325.0,0.0113268]
[1766158633722,0.00016982,88345.0,88327.0,0.00016982]
[1766158634037,0.01149422,88345.0,88328.0,0.004]
[1766158634222,0.0113247,88343.0,88328.0,0.004]
[1766158634426,0.0113258,88334.0,88327.0,0.00016982]
[1766158634637,0.0113253,88337.0,88327.0,0.00016982]
[1766158635234,0.00016982,88345.0,88327.0,0.00016982]
[1766158635534,0.0113259,88333.0,88327.0,2e-08]
[1766158635742,0.0113255,88336.0,88327.0,2e-08]
[1766158635928,0.00036,88343.0,88327.0,2e-08]
[1766158636239,0.0113249,88341.0,88327.0,2e-08]
[1766158636424,0.00036,88343.0,88327.0,2e-08]
[1766158636624,0.0113255,88336.0,88327.0,2e-08]
[1766158636827,0.00036,88343.0,88327.0,2e-08]
[1766158637029,0.0113264,88329.0,88327.0,2e-08]
[1766158638134,0.011326,88332.0,88327.0,2e-08]
[1766158638335,0.0113256,88335.0,88327.0,2e-08]
[1766158638737,0.011326,88333.0,88327.0,2e-08]
[1766158639040,0.0113262,88331.0,88327.0,2e-08]
[1766158639241,0.0116846,88343.0,88327.0,2e-08]
[1766158639442,0.00036,88343.0,88327.0,2e-08]
[1766158639635,0.0113263,88330.0,88327.0,2e-08]
[1766158640536,0.0113294,88306.0,88291.0,0.12252022]
[1766158640733,0.0113294,88306.0,88284.0,0.07494862]
[1766158640935,0.0113265,88329.0,88292.0,0.011331]
[1766158641130,0.0113283,88314.0,88289.0,0.0113315]
[1766158641329,0.0113286,88312.0,88288.0,0.0113315]
[1766158641531,0.01149882,88309.0,88291.0,0.00016982]
[1766158641735,0.01149882,88309.0,88291.0,2e-08]
[1766158641736,0.00016982,88309.0,88291.0,2e-08]
[1766158641934,0.0113292,88307.0,88284.0,3e-08]
[1766158642244,0.0113314,88291.0,88284.0,3e-08]
[1766158642443,0.0113307,88296.0,88284.0,3e-08]
[1766158643033,0.0113301,88300.0,88284.0,3e-08]
[1766158643341,0.0113297,88303.0,88284.0,3e-08]
[1766158643528,0.0113301,88301.0,88284.0,3e-08]
[1766158643930,0.0113296,88304.0,88284.0,3e-08]
[1766158644938,0.0113294,88305.0,88284.0,0.01133203]
[1766158645137,0.0113298,88303.0,88284.0,3e-08]
[1766158645444,0.00408,88306.0,88284.0,3e-08]
[1766158646242,0.0154094,88306.0,88284.0,3e-08]
[1766158646546,0.00016982,88309.0,88290.0,0.0113312]
[1766158646842,0.00016982,88309.0,88288.0,0.00408]
[1766158647043,0.00016982,88309.0,88291.0,0.0113311]
[1766158647247,0.00016982,88309.0,88298.0,0.0113302]
[1766158647443,0.00552,88323.0,88300.0,0.01133]
[1766158647641,0.00552,88323.0,88301.0,0.004]
[1766158647838,0.3208,88359.0,88290.0,0.41115007]
[1766158647839,0.0113256,88336.0,88310.0,0.0113287]
[1766158648042,0.0113258,88333.0,88310.0,0.0113288]
[1766158648231,0.0113266,88328.0,88311.0,0.004]